fUSD/lending_fUSD_20240223
["ID","MTS","AMOUNT","RATE_DAILY","PERIOD"]
[314934046,1708687856049,-500.0,0.00027886,2]
[314934047,1708687856058,-500.0,0.00027886,2]
[314934048,1708687856067,-500.0,0.00027886,2]
[314934049,1708687856076,-500.0,0.00027886,2]
[314934050,1708687856086,-500.0,0.00027886,2]
[314934051,1708687856095,-500.0,0.00027886,2]
[314934052,1708687856104,-500.0,0.00027886,2]
[314934053,1708687856113,-509.91902597,0.00027886,2]
[314934054,1708687856122,-500.0,0.00027886,2]
[314934055,1708687856131,-653.62,0.00027886,2]
[314934056,1708687856140,-515.87392645,0.00027886,2]
[314934057,1708687856149,-500.0,0.00027886,2]
[314934058,1708687856158,-500.0,0.00027886,2]
[314934059,1708687856167,-500.0,0.00027886,2]
[314934060,1708687856176,-640.92,0.00027886,2]
[314934061,1708687856185,-530.26411858,0.00027886,2]
[314934062,1708687856194,-500.0,0.00027888,2]
[314934063,1708687856203,-150.00078229,0.000279,2]
[314934064,1708687856212,-2000.0,0.000279,2]
[314934065,1708687856221,-13374.0,0.000279,2]
[314934066,1708687856230,-2575.90005728,0.00027909,2]
[314934067,1708687856240,-4847.86,0.00027918,2]
[314934068,1708687856249,-11134.42,0.00027918,2]
[314934069,1708687856258,-3902.63,0.00027918,2]
[314934070,1708687856268,-734.38,0.00027918,2]
[314934071,1708687856277,-500.0,0.00027918,2]
[314934072,1708687856286,-1561.14,0.00027918,2]
[314934073,1708687856295,-579.15,0.00027918,2]
[314934074,1708687856304,-651.84,0.00027918,2]
[314934075,1708687856313,-1084.77,0.00027918,2]
[314934076,1708687856322,-1887.89,0.00027918,2]
[314934077,1708687856332,-609.56,0.00027918,2]
[314934078,1708687856343,-12394.29,0.00027918,2]
[314934079,1708687856356,-783.01,0.00027918,2]
[314934080,1708687856365,-3065.32,0.00027918,2]
[314934081,1708687856376,-4064.58,0.00027918,2]
[314934082,1708687856385,-748.74,0.00027918,2]
[314934083,1708687856394,-3606.12,0.00027918,2]
[314934084,1708687856404,-1803.24,0.00027918,2]
[314934085,1708687856413,-500.0,0.00027918,2]
[314934086,1708687856422,-1373.42,0.00027918,2]
[314934087,1708687856431,-500.0,0.00027918,2]
[314934088,1708687856441,-3288.95,0.00027918,2]
[314934089,1708687856451,-500.0,0.00027918,2]
[314934090,1708687856461,-1085.83,0.00027918,2]
[314934091,1708687856470,-574.06,0.00027918,2]
[314934092,1708687856479,-500.0,0.00027918,2]
[314934093,1708687856489,-5748.3,0.00027918,2]
[314934094,1708687856501,-500.0,0.00027918,2]
[314934095,1708687856510,-955.05,0.00027918,2]
[314934096,1708687856520,-585.26,0.00027918,2]
[314934097,1708687856532,-909.02,0.00027918,2]
[314934098,1708687856542,-932.29,0.00027918,2]
[314934099,1708687856552,-1451.42,0.00027918,2]
[314934100,1708687856561,-654.98,0.00027918,2]
[314934101,1708687856570,-808.82,0.00027918,2]
[314934102,1708687856579,-1169.24,0.00027918,2]
[314934103,1708687856588,-884.15,0.00027918,2]
[314934104,1708687856597,-677.0,0.00027918,2]
[314934105,1708687856607,-606.24,0.00027918,2]
[314934106,1708687856615,-835.13,0.00027918,2]
[314934107,1708687856625,-2229.23,0.00027918,2]
[314934108,1708687856634,-970.48,0.00027918,2]
[314934109,1708687856642,-1003.43,0.00027918,2]
[314934110,1708687856652,-963.02,0.00027918,2]
[314934111,1708687856661,-538.59,0.00027918,2]
[314934112,1708687856670,-556.56,0.00027918,2]
[314934113,1708687856679,-1709.58,0.00027918,2]
[314934114,1708687856688,-500.0,0.00027919,2]
[314934115,1708687856697,-500.0,0.00027919,2]
[314934116,1708687856707,-500.0,0.00027919,2]
[314934117,1708687856715,-500.0,0.00027919,2]
[314934118,1708687856727,-500.0,0.00027919,2]
[314934119,1708687856738,-500.0,0.00027919,2]
[314934120,1708687856748,-500.0,0.00027919,2]
[314934121,1708687856758,-500.0,0.00027919,2]
[314934122,1708687856768,-500.0,0.00027919,2]
[314934123,1708687856777,-500.0,0.00027919,2]
[314934124,1708687856786,-500.0,0.00027919,2]
[314934125,1708687856795,-500.0,0.00027919,2]
[314934126,1708687856804,-500.0,0.00027919,2]
[314934127,1708687856812,-500.0,0.00027919,2]
[314934128,1708687856821,-500.0,0.00027919,2]
[314934129,1708687856830,-500.0,0.00027919,2]
[314934130,1708687856840,-500.0,0.00027919,2]
[314934131,1708687856850,-500.0,0.00027919,2]
[314934132,1708687856859,-859.67,0.00027919,2]
[314934133,1708687856868,-500.0,0.00027919,2]
[314934134,1708687856877,-251.15579904,0.00027919,2]
[314934135,1708687856886,-500.0,0.00027919,2]
[314934136,1708687856895,-500.0,0.00027919,2]
[314934137,1708687856904,-500.0,0.00027919,2]
[314934138,1708687856914,-583.94,0.00027919,2]
[314934139,1708687856923,-151.0,0.00027919,7]
[314934140,1708687856934,-500.0,0.00027919,2]
[314934141,1708687856943,-431.95251444,0.00027919,2]
[314934142,1708687856952,-594.6,0.00027919,2]
[314934143,1708687856961,-500.0,0.00027919,2]
[314934144,1708687856970,-500.0,0.00027919,2]
[314934145,1708687856979,-500.0,0.00027919,2]
[314934146,1708687856989,-500.0,0.00027919,2]
[314934147,1708687856998,-500.0,0.00027919,2]
[314934148,1708687857007,-500.0,0.00027919,2]
[314934149,1708687857017,-500.0,0.00027919,2]
[314934150,1708687857026,-591.93,0.00027919,2]
[314934151,1708687857035,-500.0,0.00027919,2]
[314934152,1708687857043,-500.0,0.00027919,2]
[314934153,1708687857052,-500.0,0.00027919,2]
[314934154,1708687857062,-522.38233872,0.00027919,2]
[314934155,1708687857071,-500.0,0.00027919,2]
[314934156,1708687857081,-577.02,0.00027919,2]
[314934157,1708687857090,-500.0,0.00027919,2]
[314934158,1708687857099,-567.19,0.00027919,2]
[314934159,1708687857108,-500.0,0.00027919,2]
[314934160,1708687857117,-500.0,0.00027919,2]
[314934161,1708687857126,-500.0,0.00027919,2]
[314934162,1708687857135,-644.84,0.00027919,2]
[314934163,1708687857144,-564.62,0.00027919,2]
[314934164,1708687857153,-500.0,0.00027919,2]
[314934165,1708687857162,-500.0,0.00027919,2]
[314934166,1708687857171,-500.0,0.00027919,2]
[314934167,1708687857180,-500.0,0.00027919,2]
[314934168,1708687857189,-500.0,0.00027919,2]
[314934169,1708687857198,-500.0,0.00027919,2]
[314934170,1708687857207,-508.82,0.00027919,2]
[314934171,1708687857216,-500.0,0.00027919,2]
[314934172,1708687857225,-500.0,0.00027919,2]
[314934173,1708687857234,-500.0,0.00027919,2]
[314934174,1708687857244,-150.0,0.00027919,2]
[314934175,1708687857254,-500.0,0.00027919,2]
[314934176,1708687857286,-500.0,0.00027919,2]
[314934177,1708687857295,-500.0,0.00027919,2]
[314934178,1708687857304,-520.36857423,0.00027919,2]
[314934179,1708687857313,-500.0,0.00027919,2]
[314934180,1708687857322,-245.25943475,0.00027919,2]
[314934181,1708687857332,-554.11754145,0.00027919,2]
[314934182,1708687857341,-500.0,0.00027919,2]
[314934183,1708687857352,-500.0,0.00027919,2]
[314934184,1708687857361,-500.0,0.00027919,2]
[314934185,1708687857373,-500.0,0.00027919,2]
[314934186,1708687857382,-500.0,0.00027919,2]
[314934187,1708687857391,-790.83,0.00027919,2]
[314934188,1708687857401,-500.0,0.00027919,2]
[314934189,1708687857410,-500.0,0.00027919,2]
[314934190,1708687857419,-500.0,0.00027919,2]
[314934191,1708687857428,-528.53165892,0.00027919,2]
[314934192,1708687857437,-523.98516288,0.00027919,2]
[314934193,1708687857449,-708.94,0.00027919,2]
[314934194,1708687857459,-500.0,0.00027919,2]
[314934195,1708687857469,-500.0,0.00027919,2]
[314934196,1708687857478,-652.21,0.00027919,2]
[314934197,1708687857487,-500.0,0.00027919,2]
[314934198,1708687857496,-500.0,0.00027919,2]
[314934199,1708687857505,-500.0,0.00027919,2]
[314934200,1708687857515,-500.0,0.00027919,2]
[314934201,1708687857524,-1275.36,0.00027919,2]
[314934202,1708687857532,-500.0,0.00027919,2]
[314934203,1708687857541,-1273.22,0.00027919,2]
[314934204,1708687857550,-500.0,0.00027919,2]
[314934205,1708687857559,-673.53,0.00027919,2]
[314934206,1708687857568,-964.47,0.00027919,2]
[314934207,1708687857577,-1234.63,0.00027919,2]
[314934208,1708687857586,-4595.02,0.00027919,2]
[314934209,1708687857595,-779.63,0.00027919,2]
[314934210,1708687857605,-896.56,0.00027919,2]
[314934211,1708687857613,-500.0,0.00027919,2]
[314934212,1708687857622,-500.0,0.00027919,2]
[314934213,1708687857631,-894.25,0.00027919,2]
[314934214,1708687857640,-500.0,0.00027919,2]
[314934215,1708687857649,-4586.7,0.00027919,2]
[314934216,1708687857657,-500.0,0.00027919,2]
[314934217,1708687857666,-500.0,0.00027919,2]
[314934218,1708687857675,-1038.86,0.00027919,2]
[314934219,1708687857684,-3380.8,0.00027919,2]
[314934220,1708687857693,-500.0,0.00027919,2]
[314934221,1708687857701,-1704.96,0.00027919,2]
[314934222,1708687857710,-500.0,0.00027919,2]
[314934223,1708687857718,-500.0,0.00027919,2]
[314934224,1708687857727,-746.86,0.00027919,2]
[314934225,1708687857736,-3211.66,0.00027919,2]
[314934226,1708687857745,-500.0,0.00027919,2]
[314934227,1708687857754,-500.0,0.00027919,2]
[314934228,1708687857763,-613.68,0.00027919,2]
[314934229,1708687857772,-1432.24,0.00027919,2]
[314934230,1708687857782,-1090.67,0.00027919,2]
[314934231,1708687857791,-500.0,0.00027919,2]
[314934232,1708687857800,-2172.34,0.00027919,2]
[314934233,1708687857809,-500.0,0.00027919,2]
[314934234,1708687857817,-813.15,0.00027919,2]
[314934235,1708687857826,-1166.63,0.00027919,2]
[314934236,1708687857835,-500.0,0.00027919,2]
[314934237,1708687857844,-1361.69,0.00027919,2]
[314934238,1708687857853,-1905.86,0.00027919,2]
[314934239,1708687857862,-650.59,0.00027919,2]
[314934240,1708687857871,-690.41,0.00027919,2]
[314934241,1708687857880,-7440.69,0.00027919,2]
[314934242,1708687857888,-500.0,0.00027919,2]
[314934243,1708687857899,-500.0,0.00027919,2]
[314934244,1708687857909,-500.0,0.00027919,2]
[314934245,1708687857918,-535.64,0.00027919,2]
[314934246,1708687857927,-500.0,0.00027919,2]
[314934247,1708687857938,-1976.25,0.00027919,2]
[314934248,1708687857948,-500.0,0.00027919,2]
[314934249,1708687857957,-3282.11,0.00027919,2]
[314934250,1708687857966,-500.0,0.00027919,2]
[314934251,1708687857975,-500.0,0.00027919,2]
[314934252,1708687857984,-1322.37,0.00027919,2]
[314934253,1708687857994,-3684.82,0.00027919,2]
[314934254,1708687858002,-500.0,0.00027919,2]
[314934255,1708687858012,-1022.15,0.00027919,2]
[314934256,1708687858022,-2690.77,0.00027919,2]
[314934257,1708687858031,-967.0,0.00027919,2]
[314934258,1708687858041,-788.57,0.00027919,2]
[314934259,1708687858050,-876.9,0.00027919,2]
[314934260,1708687858061,-611.38,0.00027919,2]
[314934261,1708687858070,-3051.05,0.00027919,2]
[314934262,1708687858079,-565.66,0.00027919,2]
[314934263,1708687858088,-1261.53,0.00027919,2]
[314934264,1708687858097,-3150.01,0.00027919,2]
[314934265,1708687858107,-569.88,0.00027919,2]
[314934266,1708687858116,-755.21,0.00027919,2]
[314934267,1708687858125,-2024.58,0.00027919,2]
[314934268,1708687858134,-500.0,0.00027919,2]
[314934269,1708687858143,-4325.54,0.00027919,2]
[314934270,1708687858153,-548.31039464,0.00027919,2]
[314934271,1708687858162,-1488.55,0.00027919,2]
[314934272,1708687858172,-500.0,0.00027919,2]
[314934273,1708687858180,-1629.43,0.00027919,2]
[314934274,1708687858190,-650.8,0.00027919,2]
[314934275,1708687858199,-1998.19,0.00027919,2]
[314934276,1708687858209,-500.0,0.00027919,2]
[314934277,1708687858219,-500.0,0.00027919,2]
[314934278,1708687858228,-500.0,0.00027919,2]
[314934279,1708687858237,-13459.56,0.00027919,2]
[314934280,1708687858246,-500.0,0.00027919,2]
[314934281,1708687858255,-569.49,0.00027919,2]
[314934282,1708687858265,-500.0,0.00027919,2]
[314934283,1708687858274,-500.0,0.00027919,2]
[314934284,1708687858284,-526.79310247,0.00027919,2]
[314934285,1708687858293,-155.0,0.00027945,2]
[314934286,1708687858302,-500.0,0.00027946,2]
[314934287,1708687858311,-319.61308223,0.00027946,2]
[314934288,1708687858320,-500.0,0.00027946,2]
[314934289,1708687858329,-500.0,0.00027959,2]
[314934290,1708687858338,-500.0,0.00027959,2]
[314934291,1708687858347,-500.0,0.00027959,2]
[314934292,1708687858361,-1403.53,0.00027959,2]
[314934293,1708687858370,-500.0,0.00027959,2]
[314934294,1708687858378,-39586.20374623,0.00027967,2]
[314934295,1708687858387,-150.0,0.00027967,2]
[314934296,1708687858396,-500.0,0.0002798,2]
[314934297,1708687858405,-1375.14,0.0002798,2]
[314934298,1708687858414,-678.64,0.0002798,2]
[314934299,1708687858424,-500.0,0.0002798,2]
[314934300,1708687858540,-500.0,0.0002798,2]
[314934301,1708687858549,-702.66,0.0002798,2]
[314934302,1708687858558,-4890.62,0.0002798,2]
[314934303,1708687858567,-500.0,0.0002798,2]
[314934304,1708687858576,-500.0,0.0002798,2]
[314934305,1708687858586,-2518.4,0.0002798,2]
[314934306,1708687858595,-500.0,0.0002798,2]
[314934307,1708687858604,-500.0,0.0002798,2]
[314934308,1708687858613,-674.78,0.0002798,2]
[314934309,1708687858622,-524.82,0.0002798,2]
[314934310,1708687858631,-636.21,0.0002798,2]
[314934311,1708687858640,-500.0,0.0002798,2]
[314934312,1708687858649,-704.48,0.0002798,2]
[314934313,1708687858658,-587.68,0.0002798,2]
[314934314,1708687858668,-223.95311485,0.0002798,2]
[314934315,1708687858677,-1112.79,0.0002798,2]
[314934316,1708687858687,-1963.61,0.0002798,2]
[314934317,1708687858696,-500.0,0.00027981,2]
[314934318,1708687858705,-500.0,0.00027981,2]
[314934319,1708687858716,-500.0,0.00027981,2]
[314934320,1708687858725,-501.48475793,0.00027982,2]
[314934321,1708687858735,-500.0,0.00027982,2]
[314934322,1708687858744,-500.0,0.00027982,2]
[314934323,1708687858755,-500.0,0.00027982,2]
[314934324,1708687858767,-500.0,0.00027982,2]
[314934325,1708687858776,-500.0,0.00027982,2]
[314934326,1708687858785,-509.21500879,0.00027982,2]
[314934327,1708687858794,-500.0,0.00027982,2]
[314934328,1708687858803,-500.0,0.00027982,2]
[314934329,1708687858812,-503.46161165,0.00027982,2]
[314934330,1708687858821,-500.0,0.00027982,2]
[314934331,1708687858830,-942.75,0.00027982,2]
[314934332,1708687858839,-500.0,0.00027982,2]
[314934333,1708687858848,-500.0,0.00027982,2]
[314934334,1708687858858,-500.0,0.00027982,2]
[314934335,1708687858867,-500.0,0.00027982,2]
[314934336,1708687858876,-500.0,0.00027982,2]
[314934337,1708687858885,-500.0,0.00027982,2]
[314934338,1708687858894,-500.0,0.00027982,2]
[314934339,1708687858903,-500.0,0.00027982,2]
[314934340,1708687858912,-500.0,0.00027982,2]
[314934341,1708687858922,-510.65011118,0.00027982,2]
[314934342,1708687858931,-571.12740932,0.00027982,2]
[314934343,1708687858940,-500.0,0.00027982,2]
[314934344,1708687858949,-515.07953249,0.00027982,2]
[314934345,1708687858958,-500.0,0.00027982,2]
[314934346,1708687858967,-500.0,0.00027982,2]
[314934347,1708687858976,-500.0,0.00027982,2]
[314934348,1708687858986,-500.0,0.00027982,2]
[314934349,1708687858995,-500.0,0.00027982,2]
[314934350,1708687859004,-526.07079838,0.00027982,2]
[314934351,1708687859013,-500.0,0.00027982,2]
[314934352,1708687859023,-500.0,0.00027982,2]
[314934353,1708687859032,-482.77692242,0.00027982,2]
[314934354,1708687859041,-501.23674738,0.00027982,2]
[314934355,1708687859050,-500.0,0.00027982,2]
[314934356,1708687859059,-320.27213906,0.00027982,2]
[314934357,1708687859068,-527.13114677,0.00027982,2]
[314934358,1708687859078,-500.0,0.00027982,2]
[314934359,1708687859087,-500.0,0.00027982,2]
[314934360,1708687859097,-500.0,0.00027982,2]
[314934361,1708687859106,-500.0,0.00027982,2]
[314934362,1708687859116,-500.0,0.00027982,2]
[314934363,1708687859125,-500.0,0.00027982,2]
[314934364,1708687859134,-500.0,0.00027982,2]
[314934365,1708687859143,-500.0,0.00027982,2]
[314934366,1708687859153,-500.0,0.00027982,2]
[314934367,1708687859161,-502.84569267,0.00027982,2]
[314934368,1708687859170,-500.0,0.00027982,2]
[314934369,1708687859179,-500.0,0.00027982,2]
[314934370,1708687859189,-486.21793737,0.00027982,2]
[314934371,1708687859198,-500.0,0.00027982,2]
[314934372,1708687859207,-500.0,0.00027982,2]
[314934373,1708687859216,-480.74265808,0.00027982,2]
[314934374,1708687859226,-502.46754737,0.00027982,2]
[314934375,1708687859235,-500.0,0.00027982,2]
[314934376,1708687859244,-524.67384604,0.00027982,2]
[314934377,1708687859253,-500.0,0.00027982,2]
[314934378,1708687859262,-500.0,0.00027982,2]
[314934379,1708687859272,-500.0,0.00027982,2]
[314934380,1708687859281,-613.02983096,0.00027982,2]
[314934381,1708687859290,-500.0,0.00027982,2]
[314934382,1708687859299,-500.0,0.00027982,2]
[314934383,1708687859309,-500.0,0.00027982,2]
[314934384,1708687859319,-500.0,0.00027982,2]
[314934385,1708687859328,-500.0,0.00027982,2]
[314934386,1708687859338,-500.0,0.00027982,2]
[314934387,1708687859347,-500.0,0.00027982,2]
[314934388,1708687859357,-500.0,0.00027982,2]
[314934389,1708687859369,-500.0,0.00027982,2]
[314934390,1708687859378,-500.0,0.00027982,2]
[314934391,1708687859387,-179.93193322,0.00027982,2]
[314934392,1708687859397,-519.56078338,0.00027982,2]
[314934393,1708687859407,-500.0,0.00027982,2]
[314934394,1708687859416,-524.88537577,0.00027982,2]
[314934395,1708687859425,-507.43098654,0.00027982,2]
[314934396,1708687859435,-500.0,0.00027982,2]
[314934397,1708687859444,-500.0,0.00027982,2]
[314934398,1708687859453,-545.05284031,0.00027982,2]
[314934399,1708687859462,-306.54431165,0.00027982,2]
[314934400,1708687859471,-500.0,0.00027982,2]
[314934401,1708687859481,-500.0,0.00027982,2]
[314934402,1708687859490,-500.0,0.00027982,2]
[314934403,1708687859499,-500.0,0.00027982,2]
[314934404,1708687859507,-500.0,0.00027982,2]
[314934405,1708687859517,-608.76,0.00027982,2]
[314934406,1708687859526,-500.0,0.00027982,2]
[314934407,1708687859537,-500.0,0.00027982,2]
[314934408,1708687859548,-500.0,0.00027982,2]
[314934409,1708687859558,-500.0,0.00027982,2]
[314934410,1708687859567,-500.0,0.00027982,2]
[314934411,1708687859576,-500.0,0.00027982,2]
[314934412,1708687859585,-500.0,0.00027982,2]
[314934413,1708687859594,-500.0,0.00027982,2]
[314934414,1708687859603,-500.0,0.00027982,2]
[314934415,1708687859613,-500.0,0.00027982,2]
[314934416,1708687859622,-500.0,0.00027982,2]
[314934417,1708687859632,-500.0,0.00027982,2]
[314934418,1708687859642,-500.0,0.00027982,2]
[314934419,1708687859651,-500.0,0.00027982,2]
[314934420,1708687859661,-500.0,0.00027982,2]
[314934421,1708687859670,-522.23,0.00027982,2]
[314934422,1708687859680,-500.0,0.00027982,2]
[314934423,1708687859689,-500.0,0.00027982,2]
[314934424,1708687859699,-500.0,0.00027982,2]
[314934425,1708687859708,-500.0,0.00027982,2]
[314934426,1708687859717,-605.43,0.00027982,2]
[314934427,1708687859726,-500.0,0.00027982,2]
[314934428,1708687859736,-500.0,0.00027982,2]
[314934429,1708687859745,-500.0,0.00027982,2]
[314934430,1708687859754,-156.47,0.00027995,2]
[314934431,1708687859764,-150.0,0.00027995,2]
[314934432,1708687859774,-500.0,0.00027999,2]
[314934433,1708687859783,-500.0,0.00027999,2]
[314934434,1708687859792,-500.0,0.00027999,2]
[314934435,1708687859802,-419.88873898,0.00027999,2]
[314934436,1708687859811,-500.0,0.00027999,2]
[314934437,1708687859820,-500.0,0.00027999,2]
[314934438,1708687859829,-500.0,0.00027999,2]
[314934439,1708687859839,-500.0,0.00027999,2]
[314934440,1708687859848,-500.0,0.00027999,2]
[314934441,1708687859857,-24992.95151831,0.00028,2]
[314934442,1708687859867,-481118.04482061,0.00028,2]
[314934443,1708687859876,-219.58398876,0.00028005,14]
[314934444,1708687859885,-226.1,0.00028011,2]
[314934445,1708687859894,-500.0,0.00028021,2]
[314934446,1708687859904,-924.37,0.00028021,2]
[314934447,1708687859913,-500.0,0.00028021,2]
[314934448,1708687859923,-732.46,0.00028021,2]
[314934449,1708687859932,-500.0,0.00028021,2]
[314934450,1708687859941,-577.15,0.00028021,2]
[314934451,1708687859951,-5409.94,0.00028022,2]
[314934452,1708687859960,-500.0,0.00028022,2]
[314934453,1708687859970,-585.12,0.00028022,2]
[314934454,1708687859979,-1157.17,0.00028022,2]
[314934455,1708687859988,-500.0,0.00028022,2]
[314934456,1708687859998,-500.0,0.00028022,2]
[314934457,1708687860007,-564.8,0.00028022,2]
[314934458,1708687860017,-500.0,0.00028022,2]
[314934459,1708687860026,-530.11,0.00028022,2]
[314934460,1708687860036,-1235.37,0.00028022,2]
[314934461,1708687860045,-500.0,0.00028022,2]
[314934462,1708687860055,-7584.27,0.00028022,2]
[314934463,1708687860065,-3746.99,0.00028022,2]
[314934464,1708687860074,-637.13,0.00028022,2]
[314934465,1708687860085,-791.88,0.00028022,2]
[314934466,1708687860094,-602.76,0.00028022,2]
[314934467,1708687860103,-909.61,0.00028022,2]
[314934468,1708687860112,-1374.76,0.00028022,2]
[314934469,1708687860122,-539.86,0.00028022,2]
[314934470,1708687860131,-500.0,0.00028022,2]
[314934471,1708687860141,-1242.91,0.00028022,2]
[314934472,1708687860150,-2031.83,0.00028022,2]
[314934473,1708687860160,-500.0,0.00028022,2]
[314934474,1708687860169,-2000.0,0.00028023,2]
[314934475,1708687860178,-200.0,0.00028023,2]
[314934476,1708687860187,-500.0,0.00028023,2]
[314934477,1708687860197,-500.0,0.00028023,2]
[314934478,1708687860206,-500.0,0.00028023,2]
[314934479,1708687860216,-500.0,0.00028023,2]
[314934480,1708687860225,-673.33,0.00028023,2]
[314934481,1708687860235,-500.0,0.00028023,2]
[314934482,1708687860244,-500.01097135,0.00028023,2]
[314934483,1708687860253,-546.63411561,0.00028023,2]
[314934484,1708687860262,-537.40169053,0.00028023,2]
[314934485,1708687860273,-500.0,0.00028023,2]
[314934486,1708687860283,-500.0,0.00028023,2]
[314934487,1708687860292,-500.0,0.00028023,2]
[314934488,1708687860302,-537.90983493,0.00028023,2]
[314934489,1708687860311,-521.85029613,0.00028023,2]
[314934490,1708687860321,-500.0,0.00028023,2]
[314934491,1708687860330,-500.0,0.00028023,2]
[314934492,1708687860339,-500.0,0.00028023,2]
[314934493,1708687860349,-591.04103931,0.00028023,2]
[314934494,1708687860359,-684.42,0.00028023,2]
[314934495,1708687860371,-504.45641069,0.00028023,2]
[314934496,1708687860380,-500.0,0.00028023,2]
[314934497,1708687860390,-500.0,0.00028023,2]
[314934498,1708687860399,-500.0,0.00028023,2]
[314934499,1708687860409,-500.0,0.00028023,2]
[314934500,1708687860420,-572.90210835,0.00028023,2]
[314934501,1708687860430,-576.33171346,0.00028023,2]
[314934502,1708687860439,-500.0,0.00028023,2]
[314934503,1708687860450,-523.75066061,0.00028023,2]
[314934504,1708687860459,-522.31091588,0.00028023,2]
[314934505,1708687860468,-500.0,0.00028023,2]
[314934506,1708687860477,-604.11571336,0.00028023,2]
[314934507,1708687860487,-500.0,0.00028023,2]
[314934508,1708687860496,-664.8,0.00028023,2]
[314934509,1708687860505,-500.0,0.00028023,2]
[314934510,1708687860514,-500.0,0.00028023,2]
[314934511,1708687860525,-573.23,0.00028023,2]
[314934512,1708687860534,-879.62,0.00028023,2]
[314934513,1708687860543,-1071.97,0.00028023,2]
[314934514,1708687860552,-607.1907899,0.00028023,2]
[314934515,1708687860561,-500.0,0.00028023,2]
[314934516,1708687860571,-500.0,0.00028023,2]
[314934517,1708687860861,-500.0,0.00028023,2]
[314934518,1708687860871,-500.0,0.00028023,2]
[314934519,1708687860880,-800.57,0.00028023,2]
[314934520,1708687860890,-500.0,0.00028023,2]
[314934521,1708687860899,-526.34971749,0.00028023,2]
[314934522,1708687860909,-500.0,0.00028023,2]
[314934523,1708687860918,-500.0,0.00028023,2]
[314934524,1708687860928,-500.0,0.00028023,2]
[314934525,1708687860937,-500.0,0.00028023,2]
[314934526,1708687860947,-2000.0,0.00028023,2]
[314934527,1708687860956,-500.0,0.00028023,2]
[314934528,1708687860966,-500.0,0.00028023,2]
[314934529,1708687860975,-200.0,0.00028023,2]
[314934530,1708687860984,-504.83,0.00028023,2]
[314934531,1708687860994,-500.0,0.00028023,2]
[314934532,1708687861004,-500.0,0.00028023,2]
[314934533,1708687861013,-527.30572264,0.00028023,2]
[314934534,1708687861025,-518.3127783,0.00028023,2]
[314934535,1708687861034,-515.7592257,0.00028023,2]
[314934536,1708687861044,-500.0,0.00028023,2]
[314934537,1708687861053,-248.29247555,0.00028023,2]
[314934538,1708687861062,-500.0,0.00028023,2]
[314934539,1708687861072,-500.0,0.00028023,2]
[314934540,1708687861082,-668.38,0.00028023,2]
[314934541,1708687861091,-534.03,0.00028023,2]
[314934542,1708687861100,-500.0,0.00028023,2]
[314934543,1708687861109,-500.0,0.00028023,2]
[314934544,1708687861119,-500.0,0.00028023,2]
[314934545,1708687861129,-500.0,0.00028023,2]